Cogmind - Beta 11.1 @@@ ROGUE MODE // 2022.06.07 @ 16:13:01 Player: ILikeGoodFood Result: Self-destructed Performance ------------- Evolutions (3) 1500 Regions Visited (6) 1200 Robots Destroyed (73) 365 Value Destroyed (1440) 1440 Prototype IDs (1) 20 Alien Tech Used (0) 0 Bonus (781) 781 TOTAL SCORE: 5306 Bonus ------- High Alert Combat Kills 120 Follower Combat Kills 161 Entered DSFs 500 Cogmind --------- Core Integrity 607/700 Matter 81/300 Energy 4/100 System Corruption 0% Temperature Cool (3) Movement Flying (34) Location -7/DSF Parts ------- > --- POWER (3) -------- (None) > --- PROPULSION (4) --- Xenon Bombardment Thruster Xenon Bombardment Thruster Xenon Bombardment Thruster > --- UTILITY (4) ------ Advanced Visual Processing Unit Signal Interpreter Transport Network Coupler Authchip [R/Combat] > --- WEAPON (2) ------- (None) > --- INVENTORY (5) ---- Xenon Bombardment Thruster Improved Targeting Computer Kinecellerator Cooled Plasma Rifle Rocket Launcher Peak State ------------ > --- POWER ------------ Light Ion Engine > --- PROPULSION ------- Xenon Bombardment Thruster Xenon Bombardment Thruster Xenon Bombardment Thruster Xenon Bombardment Thruster > --- UTILITY ---------- Advanced Visual Processing Unit Signal Interpreter Transport Network Coupler Authchip [R/Combat] > --- WEAPON ----------- Cooled Plasma Rifle Cooled Plasma Rifle > --- INVENTORY -------- Xenon Bombardment Thruster Xenon Bombardment Thruster Improved Targeting Computer Kinecellerator Rocket Launcher [Rating: 41] Favorites ----------- Power Light Ion Engine Engine Light Ion Engine Power Core Micro Nuclear Core Propulsion Flight Unit Wheel Compact Wheel Flight Unit Flight Unit Utility Visual Processing Unit Device Sensor Array Processor Visual Processing Unit Hackware Authchip [R/Combat] Weapon Light Assault Rifle Energy Gun EM Pulse Gun Ballistic Gun Light Assault Rifle Ballistic Cannon Improved Light Cannon Launcher Rocket Launcher Special Weapon Remote Datajack Build | -11 -10 -9 -9 -9 -7 -7 ------- Run | Scr Mat Mat Sto Rec Fac DSF Slots Evolved 6 | . . 2 . . 4 . Power 2 | . . 1 . . 1 . Propulsion 2 | . . 1 . . 1 . Utility 2 | . . . . . 2 . Weapon . | . . . . . . . Parts Attached 75 | 7 12 16 18 7 3 12 Power 16 | 2 2 3 4 4 . 1 Engine 14 | 2 2 3 4 3 . . Core 2 | . . . . 1 . 1 Reactor . | . . . . . . . Propulsion 28 | 3 6 6 7 1 . 5 Treads . | . . . . . . . Leg . | . . . . . . . Wheel 6 | 3 . . 3 . . . Hover . | . . . . . . . Flight 22 | . 6 6 4 1 . 5 Utility 7 | . 3 1 . 1 2 . Device 2 | . 2 . . . . . Storage . | . . . . . . . Processor 4 | . 1 1 . 1 1 . Hackware 1 | . . . . . 1 . Protection . | . . . . . . . Artifact . | . . . . . . . Weapon 24 | 2 1 6 7 1 1 6 Energy Gun 4 | 1 . . . . . 3 Energy Cannon . | . . . . . . . Ballistic Gun 12 | 1 1 5 4 . . 1 Ballistic Cannon 3 | . . . 1 . 1 1 Launcher 3 | . . . 2 . . 1 Special Weapon 2 | . . 1 . 1 . . Impact Weapon . | . . . . . . . Slashing Weapon . | . . . . . . . Piercing Weapon . | . . . . . . . Special Melee Weapon . | . . . . . . . Unidentified Prototypes 1 | . . . . . . 1 Parts Lost 27 | . 5 1 15 . . 6 Power 7 | . 1 . 4 . . 2 Propulsion 14 | . 3 1 7 . . 3 Utility 1 | . 1 . . . . . Weapon 5 | . . . 4 . . 1 Highest Loss Streak 4 | . 3 1 4 . . 4 To Critical Strikes . | . . . . . . . Average Slot Usage (%) 82 | . 75 99 78 80 76 80 Engine 14 | . 13 22 15 8 7 7 Wheel 3 | . 3 . 7 . . . Flight 21 | . 17 33 12 29 23 28 Device 4 | . 9 11 . . . . Processor 15 | . 2 11 22 22 23 23 Energy Gun 1 | . 4 . . . . 10 Ballistic Gun 15 | . 23 21 18 . . . Ballistic Cannon 2 | . . . . 11 7 2 Special Weapon 1 | . . . . 6 7 . Naked Turns . | . . . . . . . Heaviest Build 15 | 8 8 12 15 13 12 13 Greatest Support 42 | 32 32 12 42 12 12 24 Greatest Overweight (x) 4 | . 1 . 4 1 . 1 Average Overweight (x) . | . . . . . . . Largest Inventory Capacity 5 | 5 5 5 5 5 5 5 Average Capacity 5 | 5 5 5 5 5 5 5 Most Carried 5 | 5 5 5 5 5 5 5 Average Carried 4 | 3 4 4 4 4 3 4 Final Capacity 5 | 5 5 5 5 5 5 5 Final Carried 5 | 5 5 5 5 4 5 5 Class Distribution -------------------- 48% | Scavenger-Mutant 29% | Scavenger-Sprinter 22% | Mutant Dominant Class ---------------- Mutant | -10/Materials Scavenger-Sprinter | -9/Materials Scavenger-Mutant | -9/Storage Scavenger-Mutant | -9/Recycling Scavenger-Sprinter | -7/Factory Scavenger-Mutant | -7/DSF Resources | -11 -10 -9 -9 -9 -7 -7 ----------- Run | Scr Mat Mat Sto Rec Fac DSF Matter Collected 1618 | 289 164 213 568 308 . 76 Remotely . | . . . . . . . Salvage Created 2618 | 275 413 336 900 664 . 30 Parts 173 | 24 27 24 70 26 . 2 Haulers Intercepted 1 | . . 1 . . . . Recyclers Shooed 4 | . 1 . 1 2 . . Parts Field Recycled . | . . . . . . . Retrieved Matter . | . . . . . . . Parts Self-Destructed . | . . . . . . . Prevented . | . . . . . . . Kills | -11 -10 -9 -9 -9 -7 -7 ------- Run | Scr Mat Mat Sto Rec Fac DSF Combat Hostiles Destroyed 44 | . 8 4 20 11 . 1 Guns 26 | . 8 4 14 . . . Cannons 12 | . . . . 11 . 1 AOE 6 | . . . 6 . . . Classes Destroyed 15 | 3 3 2 4 2 . 1 Worker 4 | 2 . . 2 . . . Builder 1 | . . . 1 . . . Tunneler 6 | 6 . . . . . . Hauler 1 | . . 1 . . . . Recycler 9 | 1 2 . 1 5 . . Mechanic 1 | . . . 1 . . . Drone 8 | . . . . 8 . . Watcher 7 | . 2 3 2 . . . Swarmer 14 | . 6 . 7 1 . . Grunt 5 | . 2 . 3 . . . Brawler 1 | . . . 1 . . . Duelist 1 | . . . 1 . . . Sentry 12 | . . 4 8 . . . Specialist 1 | . . . . . . 1 Programmer 2 | . . . . 2 . . Best Kill Streak 9 | 4 5 3 9 6 . 1 Combat Bots Only 7 | . 3 1 7 3 . 1 Max Kills in Single Turn 3 | 2 1 1 3 1 . 1 Gunslinging . | . . . . . . . Exploded 2 | . . . 2 . . . Melee . | . . . . . . . Uniques/NPCs Destroyed . | . . . . . . . Combat | -11 -10 -9 -9 -9 -7 -7 -------- Run | Scr Mat Mat Sto Rec Fac DSF Damage Taken 2107 | 18 395 167 1123 . . 404 Core 538 | 9 93 59 284 . . 93 Absorbed by Shields 11 | . . . . . . 11 Regen/Repaired (Parts) 118 | . . 72 46 . . . Core Remaining (%) 56 | 96 59 . . 14 . . Volleys Fired 266 | 19 42 36 69 90 . 10 Largest 2 | 2 2 2 2 1 . 2 Hottest 60 | 60 60 43 56 39 . 48 Shots Fired 410 | 38 84 60 125 90 . 13 Gun 296 | 38 84 58 110 . . 6 Cannon 98 | . . . 3 88 . 7 Launcher 12 | . . . 12 . . . Special 4 | . . 2 . 2 . . Kinetic 354 | 19 69 58 113 88 . 7 Thermal 8 | . . 2 . . . 6 Explosive 5 | . . . 5 . . . Electromagnetic 41 | 19 15 . 7 . . . Robot Hit Streak 16 | 5 8 16 7 11 . 3 Robot Miss Streak 9 | 2 3 5 5 9 . 7 Penetration Max . | . . . . . . . Secondary Targets 4 | . 2 . 2 . . . Max Gunslinging Chain 1 | . 1 . 1 . . . Shots Hit Robots 235 | 23 52 44 66 44 . 6 Core Hits 120 | 13 20 20 41 22 . 4 Critical Kills . | . . . . . . . Critical Parts Destroyed 1 | . . 1 . . . . Critical Strikes 4 | . . 1 . 3 . . Destroy 1 | . . 1 . . . . Blast 3 | . . . . 3 . . Melee Attacks . | . . . . . . . Impact . | . . . . . . . Slashing . | . . . . . . . Piercing . | . . . . . . . Sneak Attacks . | . . . . . . . Combat Hostiles . | . . . . . . . Follow-up Attacks . | . . . . . . . Damage Inflicted 3904 | 303 478 380 1496 1075 . 172 Guns 2086 | 246 478 380 958 . . 24 Cannons 1260 | . . . 37 1075 . 148 Explosions 558 | 57 . . 501 . . . Melee . | . . . . . . . Ramming . | . . . . . . . Kinetic 3008 | 99 311 380 995 1075 . 148 Thermal 137 | 57 . . 56 . . 24 Explosive 328 | . . . 328 . . . Electromagnetic 431 | 147 167 . 117 . . . Impact . | . . . . . . . Slashing . | . . . . . . . Piercing . | . . . . . . . Highest Corruption 1 | . . . 1 1 . . Average Corruption 1 | . . . 1 1 . . Corruption Purged . | . . . . . . . Corruption Blocked . | . . . . . . . Effects 10 | . . . 7 3 . . Message Errors 4 | . . . 2 2 . . Matter Fused 2 | . . . 2 . . . Energy Discharges 2 | . . . 1 1 . . Data Loss (minor) 2 | . . . 2 . . . Overload Shots . | . . . . . . . Overflow Damage 105 | . . . 17 88 . . Projectiles 88 | . . . . 88 . . Explosions 17 | . . . 17 . . . Melee . | . . . . . . . Knockbacks 14 | . . . . 13 . 1 Impact . | . . . . . . . Kinetic 13 | . . . . 12 . 1 Secondary 1 | . . . . 1 . . Self-Inflicted Damage 128 | 18 . . 110 . . . Shots 4 | 1 . . 3 . . . Rammed . | . . . . . . . Targets Rammed . | . . . . . . . Kicked . | . . . . . . . Crushed . | . . . . . . . Highest Temperature 116 | 40 116 39 31 15 . . Average Temperature 15 | 17 24 13 11 5 . . Received Heat Transfer 318 | . 48 45 225 . . . Siege Activations . | . . . . . . . Robots Corrupted . | . . . . . . . Combat Hostiles . | . . . . . . . Parts Fried 1 | . . . 1 . . . Impact Corruptions . | . . . . . . . Robots Melted . | . . . . . . . Combat Hostiles . | . . . . . . . Parts Melted . | . . . . . . . Heat Transferred 137 | 50 . . 50 . . 37 Parts Sabotaged . | . . . . . . . Parts Stolen . | . . . . . . . Parts Stripped . | . . . . . . . Power Chain Reactions 4 | 1 . . 3 . . . Missiles Intercepted . | . . . . . . . Alert | -11 -10 -9 -9 -9 -7 -7 ------- Run | Scr Mat Mat Sto Rec Fac DSF Peak Influence 1108 | 45 263 216 888 667 1108 795 Initial 1096 | . 29 40 59 289 1096 775 Average 299 | 21 144 130 349 480 1103 774 Maximum Alert Level 4 | . 1 1 3 2 4 3 Low Security (%) 45 | 100 78 69 30 . . . Level 1 26 | . 21 30 36 29 . . Level 2 18 | . . . 22 70 . . Level 3 8 | . . . 10 . 41 100 Level 4 1 | . . . . . 58 . Level 5 . | . . . . . . . High Security . | . . . . . . . Max Security . | . . . . . . . Squads Dispatched 6 | . 1 . 3 . . 2 Investigation 1 | . 1 . . . . . Extermination . | . . . . . . . Reinforcement 2 | . . . . . . 2 Assault . | . . . . . . . Garrison 3 | . . . 3 . . . Intercept . | . . . . . . . Searches Triggered . | . . . . . . . Construction Impeded . | . . . . . . . Haulers Reinforced . | . . . . . . . Active Scanning Responses . | . . . . . . . Cargo Convoy Interrupts . | . . . . . . . Stealth | -11 -10 -9 -9 -9 -7 -7 --------- Run | Scr Mat Mat Sto Rec Fac DSF Distress Signals 3 | . . 2 1 . . . Communications Jammed . | . . . . . . . Distress Signals . | . . . . . . . Times Spotted 82 | . 15 11 27 21 . 8 Peak Tracking Total 5 | . 5 4 5 4 . 5 Tactical Retreats 5 | . 1 2 1 . . 1 Traps | -11 -10 -9 -9 -9 -7 -7 ------- Run | Scr Mat Mat Sto Rec Fac DSF Traps Triggered 6 | . 2 . 2 . . 2 Indirectly . | . . . . . . . Trap Hack Attempts . | . . . . . . . Triggered . | . . . . . . . Disarmed . | . . . . . . . Reprogrammed . | . . . . . . . Reused . | . . . . . . . Traps Extracted . | . . . . . . . Installed . | . . . . . . . Triggered . | . . . . . . . Machines | -11 -10 -9 -9 -9 -7 -7 ---------- Run | Scr Mat Mat Sto Rec Fac DSF Machines Disabled 8 | . . . 8 . . . Max in Single Turn 3 | . . . 3 . . . Garrison Access 1 | . . . 1 . . . Machines Sabotaged . | . . . . . . . Garrisons Compromised . | . . . . . . . Overloaded Fab Kills . | . . . . . . . Hacking | -11 -10 -9 -9 -9 -7 -7 --------- Run | Scr Mat Mat Sto Rec Fac DSF Machines Accessed 27 | . 5 5 11 3 3 . Terminals 18 | . 3 4 8 2 1 . Fabricators . | . . . . . . . Repair Stations 5 | . 1 1 2 . 1 . Recycling Units 2 | . 1 . . 1 . . Scanalyzers . | . . . . . . . Garrison Access 2 | . . . 1 . 1 . Total Hacks 71 | . 13 19 30 5 4 . Successful 35 | . 9 9 13 1 3 . Failed 36 | . 4 10 17 4 1 . Catastrophic 3 | . 1 1 . . 1 . Database Lockouts . | . . . . . . . Manual 1 | . . . 1 . . . Terminals 58 | . 10 17 26 4 1 . Fabricators . | . . . . . . . Repair Stations 9 | . 2 2 3 . 2 . Recycling Units 2 | . 1 . . 1 . . Scanalyzers . | . . . . . . . Garrison Access 2 | . . . 1 . 1 . Terminal Hacks 25 | . 7 7 10 . 1 . Record 3 | . 1 . 2 . . . Part Schematic 2 | . . . 2 . . . Robot Analysis 1 | . . 1 . . . . Open Door 1 | . . . 1 . . . Open DSF 1 | . . . . . 1 . Branch Access Points 1 | . 1 . . . . . Emergency Access Points 1 | . . 1 . . . . Locate Traps 3 | . 1 . 2 . . . Dispatch Records 2 | . 1 1 . . . . Transport Status 1 | . 1 . . . . . Hauler Manifests 2 | . 1 . 1 . . . Registered Components 1 | . . 1 . . . . Zone Layout 6 | . 1 3 2 . . . Fabricator Hacks . | . . . . . . . Repair Station Hacks 6 | . 1 2 2 . 1 . Scan Component 4 | . 1 1 1 . 1 . Repair 2 | . . 1 1 . . . Recycling Unit Hacks 2 | . 1 . . 1 . . Report Inventory 1 | . . . . 1 . . Retrieve Components 1 | . 1 . . . . . Scanalyzer . | . . . . . . . Garrison Access Hacks 2 | . . . 1 . 1 . Unlock Access 1 | . . . . . 1 . Seal Access 1 | . . . 1 . . . Unauthorized Hacks . | . . . . . . . Terminals . | . . . . . . . Fabricators . | . . . . . . . Repair Stations . | . . . . . . . Recycling Units . | . . . . . . . Scanalyzers . | . . . . . . . Garrison Access . | . . . . . . . Data Cores Recovered . | . . . . . . . Used . | . . . . . . . Hacking Detections 21 | . 3 5 10 2 1 . Full Trace Events . | . . . . . . . Feedback Events . | . . . . . . . Feedback Blocked . | . . . . . . . Robot Schematics Acquired . | . . . . . . . Robots Built . | . . . . . . . Authchips . | . . . . . . . Time . | . . . . . . . Total Robot Build Rating . | . . . . . . . Part Schematics Acquired 2 | . . . 2 . . . Parts Built . | . . . . . . . Authchips . | . . . . . . . Time . | . . . . . . . Total Part Build Rating . | . . . . . . . Parts Repaired 2 | . . 1 1 . . . Time 58 | . . 26 32 . . . Parts Recycled . | . . . . . . . Recycled Matter . | . . . . . . . Retrieved Matter . | . . . . . . . Retrieved Components 10 | . 10 . . . . . Parts Scanalyzed . | . . . . . . . Part Schematics Acquired . | . . . . . . . Parts Damaged . | . . . . . . . Bothacking | -11 -10 -9 -9 -9 -7 -7 ------------ Run | Scr Mat Mat Sto Rec Fac DSF Used RIF Installer . | . . . . . . . Robots Hacked . | . . . . . . . Non-combat . | . . . . . . . Combat . | . . . . . . . Robot Hacks Applied . | . . . . . . . Relay Couplers Released . | . . . . . . . Fabnet Peak Effective % . | . . . . . . . Robots Rewired 1 | . . . . 1 . . Allies Hacked . | . . . . . . . Hacks Repelled . | . . . . . . . Allies | -11 -10 -9 -9 -9 -7 -7 -------- Run | Scr Mat Mat Sto Rec Fac DSF Total Allies 2 | . . . 1 1 . . Largest Group 1 | . . . 1 1 1 . Highest-Rated Group 100 | . . . 100 21 21 . Highest-Rated Ally 100 | . . . 100 21 21 . Total Orders . | . . . . . . . Ally Attacks 19 | . . . 13 6 . . Total Damage 656 | . . . 554 102 . . Kills 8 | . . . 5 3 . . Allies Corrupted . | . . . . . . . Allies Melted . | . . . . . . . Intel | -11 -10 -9 -9 -9 -7 -7 ------- Run | Scr Mat Mat Sto Rec Fac DSF Robot Analysis Total 1 | . . 1 . . . . Derelict Logs Recovered . | . . . . . . . Drone Launches . | . . . . . . . Drone Recoveries . | . . . . . . . Exploration | -11 -10 -9 -9 -9 -7 -7 ------------- Run | Scr Mat Mat Sto Rec Fac DSF Turns Passed 2537 | 215 455 468 836 408 58 97 Spaces Moved 2766 | 115 442 673 857 426 172 81 Core 33 | 5 . . 28 . . . Treads . | . . . . . . . Legs . | . . . . . . . Wheels 343 | 110 40 . 193 . . . Hover . | . . . . . . . Flight 2390 | . 402 673 636 426 172 81 Fastest Speed 29 | 50 37 32 32 30 30 29 Average Speed 50 | 95 67 32 60 39 30 38 Slowest Speed 250 | 100 125 34 250 114 30 117 Overloaded Moves . | . . . . . . . Propulsion Burnouts . | . . . . . . . Robots Hopped 7 | . 2 2 2 . 1 . Cave-ins Triggered . | . . . . . . . Exploration Rate (%) 51 | 4 54 45 96 85 5 71 Regions Visited 6 Branch Regions 2 Pre-discovered Areas . | . . . . . . . Known Exits Taken 4 | . . 1 1 1 1 . Unknown Exits Taken 2 | 1 1 . . . . . Scrap Searched . | . . . . . . . Spaces Dug . | . . . . . . . Terrain Destroyed 70 | 2 . . 64 4 . . Melee . | . . . . . . . Projectile 4 | . . . . 4 . . AOE 66 | 2 . . 64 . . . Terrain Rammed . | . . . . . . . Walls Destroyed . | . . . . . . . Machines Disabled . | . . . . . . . Actions | -11 -10 -9 -9 -9 -7 -7 --------- Run | Scr Mat Mat Sto Rec Fac DSF Total 3502 | 186 524 866 1044 574 176 132 Wait 307 | 32 11 128 90 46 . . Move 2747 | 114 438 668 852 425 169 81 Hop 6 | . 1 2 2 . 1 . Pick Up 46 | 12 12 8 6 1 3 4 Fast Attach 28 | . 3 2 11 5 . 7 Attach 21 | 5 4 4 4 . 2 2 Detach 2 | . . 1 1 . . . Swap 26 | 2 5 10 3 2 1 3 Drop 35 | 2 8 7 6 5 . 7 Fire 266 | 19 42 36 69 90 . 10 Melee . | . . . . . . . Ram . | . . . . . . . Kick . | . . . . . . . Crush . | . . . . . . . Escape Stasis 18 | . . . . . . 18 Rewire . | . . . . . . . Trap . | . . . . . . . Miscellaneous . | . . . . . . . Route ------- -11/Scrapyard -10/Materials (discovered 2 exits: *Mat / *Min) -9/Materials (discovered 3 exits: *Mat / [*Min] / *Sto) -9/Storage (discovered 2 exits: *Mat / *Rec) -9/Recycling -7/Factory (discovered 2 exits: Gar / DSF) -7/DSF History --------- Turn | Location | Event 25 | -11/Scrapyard | Discovered new exit (range 16) 216 | -11/Scrapyard | Entered Materials 342 | -10/Materials | Build established: Mutant 366 | -10/Materials | Lost 3 parts (3n) 642 | -10/Materials | Discovered new exit (range 9) 653 | -10/Materials | Identified exit to Mines 662 | -10/Materials | Discovered new exit (range 16) 671 | -10/Materials | Entered another Materials area 671 | -9/Materials | Evolved 2 slots: Power x1, Propulsion x1 756 | -9/Materials | Repaired Lgt. Assault Rifle 891 | -9/Materials | Discovered new exit (range 9) 960 | -9/Materials | Discovered new exit (range 18) 1032 | -9/Materials | Build established: Scavenger-Sprinter 1135 | -9/Materials | Discovered new exit (range 7) 1138 | -9/Materials | Identified exit to Storage 1139 | -9/Materials | Entered Storage 1471 | -9/Storage | Repaired Hvy. Assault Rifle 1626 | -9/Storage | Garrison activated, responded to threat 1632 | -9/Storage | Core integrity fell below 50% 1644 | -9/Storage | Build established: Scavenger-Mutant 1670 | -9/Storage | Destroyed 7 combat bots 1676 | -9/Storage | Lost 4 parts (3n1w) 1724 | -9/Storage | Discovered new exit (range 17) 1737 | -9/Storage | Identified exit to Materials 1751 | -9/Storage | Met 01-MTF 1840 | -9/Storage | Discovered new exit (range 5) 1841 | -9/Storage | Identified exit to Recycling 1872 | -9/Storage | Core integrity fell below 20% 1902 | -9/Storage | Lost 4 parts (1p1n2w) 1975 | -9/Storage | Entered Recycling 1975 | -9/Recycling | Accompanied by 1 ally (01-MTF) 1980 | -9/Recycling | 01-MTF left 1996 | -9/Recycling | Spotter reported a threat 2012 | -9/Recycling | Spotter reported a threat 2012 | -9/Recycling | Spotter reported a threat 2023 | -9/Recycling | Spotter reported a threat 2047 | -9/Recycling | Spotter reported a threat 2088 | -9/Recycling | Spotter reported a threat 2133 | -9/Recycling | Spotter reported a threat 2223 | -9/Recycling | Spotter reported a threat 2224 | -9/Recycling | Spotter reported a threat 2243 | -9/Recycling | Spotter reported a threat 2256 | -9/Recycling | Spotter reported a threat 2260 | -9/Recycling | Spotter reported a threat 2298 | -9/Recycling | Spotter reported a threat 2308 | -9/Recycling | Spotter reported a threat 2308 | -9/Recycling | Spotter reported a threat 2319 | -9/Recycling | Discovered new exit (range 17) 2329 | -9/Recycling | Identified exit to Factory 2347 | -9/Recycling | Spotter reported a threat 2347 | -9/Recycling | Spotter reported a threat 2347 | -9/Recycling | Spotter reported a threat 2361 | -9/Recycling | Spotter reported a threat 2383 | -9/Recycling | Entered Factory 2383 | -7/Factory | Accompanied by 1 ally 2383 | -7/Factory | Evolved 4 slots: Power x1, Propulsion x1, Utility x2 2433 | -7/Factory | Identified exit to Garrison 2441 | -7/Factory | Identified exit to DSF 2441 | -7/Factory | Entered DSF 2484 | -7/DSF | Additional patrols routed to DSF 2538 | -7/DSF | Self-destructed Last Messages --------------- Field strength at 48. Field strength at 43. Field strength at 38. Field strength at 33. Xenon Bombardment Thruster destroyed. Acquired 30 matter. Acquired 25 matter. Acquired Lgt. Nuclear Core. Penetrated by Slug. Lgt. Nuclear Core destroyed. Critical hit (Blast). Acquired 2 matter. Lgt. Ion Engine destroyed. Acquired Flak Cannon. Dropped Cld. Plasma Rifle. Xenon Bombardment Thruster destroyed. C-17 Slicer knocked back. Flak Cannon severed. ALERT: Suspicious intruders detected, dispatching Cutter reinforcements to area. Map ----- +----------------------------------------------------+ | | | | | | | ?????????????????????????????????????? | | ?????????????????????????????????????? | | ?????????????????????????????????????? | | ?????????????????????????????????????# | | ?????????????????????????????????????# | | ?????????????????????????????????????# | | ????????????????????#########???????## | | ????????????????????#** #########" | | ????????????????????#** # # ##" | | ????????????????????# | | ????????????????????# | | ????????????????????### ###===#==## | | ????????????????????### ###===#==### | | ????????????????????#!! [[##+####### | | ????????????????????#!! [[## #???#== | | ????????????????????#!! [[## ###?#== | | ????????????????????### #### [#?### | | ???????????????????##[[ ## [[###* | | ???????????????????#"[[=! ] + ] | | ????????????????????#[[ / ########== | | ????????????##########" = ###??????### | | ????????????#]c]#!!!###H ##???=#????# | | ??????#[[ ##@c[#!!!## ##===# ## | | ??????# ]c | | ??????# | | ??????# | | ??????#!! ## #===##a a## #!!!## | | ??????#!! ?# #===### ##? #??!## | | ??????### ??#########?# #???###????? | | ????????= ????????????! ==?????????? | | ???????#=?????????????! ==#????????? | | ???????#?????????????!! ==#????????? | | ?????????????????????## ###????????? | | ?????????????????????? ??????????? | | ?????????????????????? ?????????? | | ?????????????????????? ?????????? | | ??????????????????????# ###????????? | | ??????????????????????# #??????????? | | ?????????????????????? ??????????? | | ?????????????????????? ??????????? | | ?????????????????????? !??????????? | | ?????????????????????? !??????????? | | ??????????????????????#####??????????? | | ?????????????????????????????????????? | | ?????????????????????????????????????? | | ?????????????????????????????????????? | | ?????????????????????????????????????? | +----------------------------------------------------+ Best States ------------- Heat Dissipation 34 Energy Generation 15 Energy Capacity 250 Matter Stores 300 Matter Capacity 300 Sight Range 20 Robot Scan Range 14 Terrain Scan Density 10 ECM Strength 1 Evasion (%) 64 Authchip Count 2 Item Schematics ----------------- Proton Missile Launcher | -9/Storage | Hacked Imp. Heat Sink | -9/Storage | Hacked Robot Schematics ------------------ None Fabricated ------------ Nothing Alien Tech Used ----------------- None Achievements -------------- A New Friend \\IAMDERELICT Challenges ------------ None Game ------ Seed SegregatorProtonFlail Manual? 0 Play Time 00:57:35 Cumulative 26.4 hours Start 2022.06.07 @ 15:15:28 End 2022.06.07 @ 16:13:01 Sessions 1 Manual Loads 0 Difficulty Rogue Special Mode None Game No. 49 Rogue 49 Adventurer 0 Explorer 0 Win Type - Total 0 Types 0/0/0/0/0/0/0/0/0 Lore% 19 Gallery% 24 Achievement% 19 Wizard Run 0 Options --------- ASCII 0 Keyboard 0 Movement Mouse Keybinds 0 Fullscreen 1 Font 18/SmallcapsGlow Map View 76x50 Tactical HUD 0 Map Filters NONE Filters NONE Steam 1 RUN: 99331d18-a442-4de7-9586-586f9a2bd02e